[Event "Late-Titled-Tuesday-Blitz-October-10-2023"]
[Site "Chess.com"]
[Date "2023.10.10"]
[Round "7"]
[White "Arimin1329"]
[Black "AlivodicDario"]
[Result "0-1"]
[WhiteElo "2292"]
[BlackElo "2449"]
[TimeControl "180+1"]
[EndTime "15:13:02 PDT"]
[Termination "AlivodicDario won by checkmate"]

1. Nf3 {[%clk 0:03:00.2]} 1... d5 {[%clk 0:03:00.1]} 2. d4 {[%clk 0:03:00.3]}
2... e6 {[%clk 0:03:00.1]} 3. b3 {[%clk 0:03:00.2]} 3... Nd7 {[%clk 0:02:58.1]}
4. Bb2 {[%clk 0:03:01.1]} 4... Bd6 {[%clk 0:02:58]} 5. Nbd2 {[%clk 0:03:00.8]}
5... f5 {[%clk 0:02:57.9]} 6. e3 {[%clk 0:03:00.8]} 6... Ngf6 {[%clk 0:02:58]}
7. c4 {[%clk 0:03:01]} 7... c6 {[%clk 0:02:58]} 8. Be2 {[%clk 0:02:56.1]} 8...
Ne4 {[%clk 0:02:58.1]} 9. Qc2 {[%clk 0:02:55]} 9... Qf6 {[%clk 0:02:57.6]} 10.
Nxe4 {[%clk 0:02:47.7]} 10... fxe4 {[%clk 0:02:55.4]} 11. Nd2 {[%clk 0:02:47.8]}
11... O-O {[%clk 0:02:51.6]} 12. f4 {[%clk 0:02:40.2]} 12... exf3 {[%clk
0:02:42.7]} 13. Nxf3 {[%clk 0:02:36.1]} 13... Qh6 {[%clk 0:02:42.9]} 14. e4
{[%clk 0:02:19.8]} 14... Bg3+ {[%clk 0:02:30.4]} 15. Kf1 {[%clk 0:01:40.7]}
15... Nf6 {[%clk 0:02:25.8]} 16. Bc1 {[%clk 0:01:30.3]} 16... Bf4 {[%clk
0:02:22.1]} 17. Bxf4 {[%clk 0:01:23.4]} 17... Qxf4 {[%clk 0:02:23]} 18. e5
{[%clk 0:01:20.4]} 18... Ng4 {[%clk 0:02:22.7]} 19. Qc1 {[%clk 0:01:09.2]} 19...
Qxd4 {[%clk 0:02:15]} 20. Ke1 {[%clk 0:00:51.8]} 20... Qf2+ {[%clk 0:02:10.2]}
21. Kd1 {[%clk 0:00:52.1]} 21... Ne3+ {[%clk 0:01:52]} 22. Kd2 {[%clk
0:00:51.3]} 22... dxc4 {[%clk 0:01:50.3]} 23. Qc3 {[%clk 0:00:41.7]} 23... Rd8+
{[%clk 0:01:49.5]} 24. Kc1 {[%clk 0:00:37.2]} 24... Qxe2 {[%clk 0:01:48.1]} 25.
Re1 {[%clk 0:00:37.6]} 25... Rd1+ {[%clk 0:01:41.5]} 26. Rxd1 {[%clk 0:00:37.9]}
26... Qxd1+ {[%clk 0:01:37.7]} 27. Kb2 {[%clk 0:00:37.9]} 27... Qe2+ {[%clk
0:01:31]} 28. Ka3 {[%clk 0:00:38.5]} 28... Nc2+ {[%clk 0:01:30.1]} 29. Ka4
{[%clk 0:00:29.1]} 29... a5 {[%clk 0:01:27.5]} 30. Nd4 {[%clk 0:00:21.4]} 30...
b5+ {[%clk 0:01:09.2]} 31. Nxb5 {[%clk 0:00:20.8]} 31... cxb5+ {[%clk
0:01:09.3]} 32. Kxb5 {[%clk 0:00:21.2]} 32... cxb3+ {[%clk 0:01:08.6]} 33. Kb6
{[%clk 0:00:18.8]} 33... Nxa1 {[%clk 0:00:52.4]} 34. Qc6 {[%clk 0:00:16.4]}
34... Ra6+ {[%clk 0:00:49.6]} 35. Kc7 {[%clk 0:00:16.8]} 35... Qxe5+ {[%clk
0:00:48]} 36. Kd8 {[%clk 0:00:16.7]} 36... Rxc6 {[%clk 0:00:46.7]} 37. Ke7
{[%clk 0:00:17]} 37... bxa2 {[%clk 0:00:43.3]} 38. h4 {[%clk 0:00:16.3]} 38...
Rc7+ {[%clk 0:00:43.8]} 39. Ke8 {[%clk 0:00:16.3]} 39... Ba6 {[%clk 0:00:44.4]}
40. h5 {[%clk 0:00:16.4]} 40... Qxh5+ {[%clk 0:00:43.3]} 41. Kd8 {[%clk
0:00:16.4]} 41... Qe5 {[%clk 0:00:43.9]} 42. g4 {[%clk 0:00:15.8]} 42... Kf7
{[%clk 0:00:44.4]} 43. g5 {[%clk 0:00:16.7]} 43... Kg6 {[%clk 0:00:45.1]} 44.
Ke8 {[%clk 0:00:15.6]} 44... Kxg5 {[%clk 0:00:44.5]} 45. Kd8 {[%clk 0:00:15.9]}
45... Kf6 {[%clk 0:00:44.8]} 46. Ke8 {[%clk 0:00:16.4]} 46... g5 {[%clk
0:00:45.7]} 47. Kd8 {[%clk 0:00:16.8]} 47... g4 {[%clk 0:00:46.6]} 48. Ke8
{[%clk 0:00:17.5]} 48... g3 {[%clk 0:00:47.5]} 49. Kf8 {[%clk 0:00:18.3]} 49...
g2 {[%clk 0:00:48.4]} 50. Kg8 {[%clk 0:00:18.9]} 50... h5 {[%clk 0:00:49.3]} 51.
Kh8 {[%clk 0:00:19.1]} 51... h4 {[%clk 0:00:50.2]} 52. Kg8 {[%clk 0:00:19.5]}
52... h3 {[%clk 0:00:51.1]} 53. Kf8 {[%clk 0:00:20.4]} 53... h2 {[%clk 0:00:52]}
54. Ke8 {[%clk 0:00:21.1]} 54... Nb3 {[%clk 0:00:52.9]} 55. Kf8 {[%clk
0:00:21.7]} 55... a4 {[%clk 0:00:53.8]} 56. Kg8 {[%clk 0:00:22.4]} 56... a3
{[%clk 0:00:54.7]} 57. Kh8 {[%clk 0:00:23.2]} 57... a1=Q {[%clk 0:00:53.6]} 58.
Kg8 {[%clk 0:00:23.6]} 58... Qab2 {[%clk 0:00:53.9]} 59. Kf8 {[%clk 0:00:24.2]}
59... a2 {[%clk 0:00:54.6]} 60. Ke8 {[%clk 0:00:24.7]} 60... a1=Q {[%clk
0:00:54.4]} 61. Kd8 {[%clk 0:00:25.6]} 61... g1=Q {[%clk 0:00:53.2]} 62. Ke8
{[%clk 0:00:26.5]} 62... h1=Q {[%clk 0:00:52.9]} 63. Kf8 {[%clk 0:00:27.4]}
63... Qf4 {[%clk 0:00:46.6]} 64. Ke8 {[%clk 0:00:27.5]} 64... e5 {[%clk
0:00:45.8]} 65. Kd8 {[%clk 0:00:27.7]} 65... e4 {[%clk 0:00:46.2]} 66. Ke8
{[%clk 0:00:28]} 66... e3 {[%clk 0:00:46.8]} 67. Kf8 {[%clk 0:00:26.7]} 67... e2
{[%clk 0:00:46.6]} 68. Ke8 {[%clk 0:00:27.6]} 68... Qad1 {[%clk 0:00:39.2]} 69.
Kf8 {[%clk 0:00:27.5]} 69... Qbc1 {[%clk 0:00:38.1]} 70. Ke8 {[%clk 0:00:27.2]}
70... Qff1 {[%clk 0:00:30]} 71. Kf8 {[%clk 0:00:28.1]} 71... Bd3 {[%clk
0:00:27.3]} 72. Ke8 {[%clk 0:00:28.1]} 72... Bb1 {[%clk 0:00:25.3]} 73. Kf8
{[%clk 0:00:29]} 73... Na1 {[%clk 0:00:22.1]} 74. Ke8 {[%clk 0:00:29.9]} 74...
e1=Q+ {[%clk 0:00:21.9]} 75. Kf8 {[%clk 0:00:30.8]} 75... Rc8# {[%clk
0:00:22.4]} 0-1

[Event "Late-Titled-Tuesday-Blitz-October-10-2023"]
[Site "Chess.com"]
[Date "2023.10.10"]
[Round "7"]
[White "Mikhail_Golubev"]
[Black "ThaBarWa"]
[Result "0-1"]
[WhiteElo "2579"]
[BlackElo "2434"]
[TimeControl "180+1"]
[EndTime "15:13:03 PDT"]
[Termination "ThaBarWa won on time"]

1. e4 {[%clk 0:03:00.9]} 1... e6 {[%clk 0:02:58.5]} 2. d4 {[%clk 0:03:00]} 2...
d5 {[%clk 0:02:59.2]} 3. Nc3 {[%clk 0:03:00.4]} 3... Nf6 {[%clk 0:02:58.2]} 4.
e5 {[%clk 0:02:59.1]} 4... Nfd7 {[%clk 0:02:58.1]} 5. f4 {[%clk 0:02:59.6]} 5...
c5 {[%clk 0:02:58.2]} 6. Nf3 {[%clk 0:03:00.2]} 6... Nc6 {[%clk 0:02:54.5]} 7.
Be3 {[%clk 0:03:00.7]} 7... a6 {[%clk 0:02:51.3]} 8. a3 {[%clk 0:02:57.9]} 8...
b5 {[%clk 0:02:46.7]} 9. dxc5 {[%clk 0:02:52.5]} 9... Bxc5 {[%clk 0:02:43.5]}
10. Bxc5 {[%clk 0:02:46.1]} 10... Nxc5 {[%clk 0:02:44.4]} 11. Nd4 {[%clk
0:02:45.5]} 11... Qb6 {[%clk 0:02:38.6]} 12. Nxc6 {[%clk 0:02:39.8]} 12... Qxc6
{[%clk 0:02:37.3]} 13. Qd4 {[%clk 0:02:39.1]} 13... Ne4 {[%clk 0:02:05.3]} 14.
Nxe4 {[%clk 0:02:34]} 14... dxe4 {[%clk 0:02:06.2]} 15. O-O-O {[%clk 0:02:34.2]}
15... O-O {[%clk 0:02:02.3]} 16. Qd6 {[%clk 0:02:07.4]} 16... Bb7 {[%clk
0:01:59.4]} 17. Qxc6 {[%clk 0:01:59.3]} 17... Bxc6 {[%clk 0:02:00.3]} 18. Be2
{[%clk 0:01:59.1]} 18... Bd5 {[%clk 0:01:57.8]} 19. Rd4 {[%clk 0:01:51.9]} 19...
Rac8 {[%clk 0:01:50.3]} 20. c3 {[%clk 0:01:45.1]} 20... f5 {[%clk 0:01:50.3]}
21. exf6 {[%clk 0:01:36.6]} 21... gxf6 {[%clk 0:01:51.2]} 22. f5 {[%clk
0:01:36.9]} 22... Rc5 {[%clk 0:01:15.9]} 23. fxe6 {[%clk 0:01:33.3]} 23... f5
{[%clk 0:01:11.3]} 24. e7 {[%clk 0:01:23.3]} 24... Re8 {[%clk 0:01:11.4]} 25. b4
{[%clk 0:01:13.8]} 25... Rxc3+ {[%clk 0:01:11]} 26. Kd2 {[%clk 0:01:09.9]} 26...
Rxa3 {[%clk 0:01:02.3]} 27. Rxd5 {[%clk 0:01:03.3]} 27... Rxe7 {[%clk
0:00:57.6]} 28. Rc1 {[%clk 0:00:58.8]} 28... f4 {[%clk 0:00:49.8]} 29. Rg5+
{[%clk 0:00:53.2]} 29... Kf7 {[%clk 0:00:48.6]} 30. Rf5+ {[%clk 0:00:52.9]}
30... Kg7 {[%clk 0:00:43.1]} 31. Rxf4 {[%clk 0:00:53.8]} 31... Ra2+ {[%clk
0:00:39.5]} 32. Ke3 {[%clk 0:00:49.3]} 32... Ra3+ {[%clk 0:00:35.6]} 33. Kf2
{[%clk 0:00:45.3]} 33... Rb3 {[%clk 0:00:36.5]} 34. Rc6 {[%clk 0:00:32]} 34...
Rxb4 {[%clk 0:00:34.5]} 35. Rxa6 {[%clk 0:00:31.5]} 35... Rb2 {[%clk 0:00:34]}
36. Ra3 {[%clk 0:00:27.5]} 36... Rf7 {[%clk 0:00:21.8]} 37. Rxf7+ {[%clk
0:00:24.8]} 37... Kxf7 {[%clk 0:00:22.7]} 38. Re3 {[%clk 0:00:24.6]} 38... Rb4
{[%clk 0:00:21.1]} 39. Kg3 {[%clk 0:00:22.6]} 39... Kf6 {[%clk 0:00:20.6]} 40.
Kf4 {[%clk 0:00:22.8]} 40... Rb1 {[%clk 0:00:18.9]} 41. Rxe4 {[%clk 0:00:21.7]}
41... b4 {[%clk 0:00:19.8]} 42. g4 {[%clk 0:00:21.6]} 42... b3 {[%clk
0:00:18.9]} 43. g5+ {[%clk 0:00:20.4]} 43... Kg7 {[%clk 0:00:19.4]} 44. Re7+
{[%clk 0:00:19.3]} 44... Kf8 {[%clk 0:00:18.2]} 45. Rb7 {[%clk 0:00:18.9]} 45...
b2 {[%clk 0:00:18.1]} 46. Bf3 {[%clk 0:00:14.8]} 46... Kg8 {[%clk 0:00:14.8]}
47. h3 {[%clk 0:00:13]} 47... Kf8 {[%clk 0:00:14]} 48. h4 {[%clk 0:00:11.7]}
48... Kg8 {[%clk 0:00:14.4]} 49. h5 {[%clk 0:00:11.6]} 49... Kf8 {[%clk
0:00:13.9]} 50. h6 {[%clk 0:00:11.8]} 50... Kg8 {[%clk 0:00:14.1]} 51. Bh5
{[%clk 0:00:08.2]} 51... Rf1+ {[%clk 0:00:12.8]} 52. Ke5 {[%clk 0:00:05.3]}
52... b1=Q {[%clk 0:00:13.7]} 53. Rxb1 {[%clk 0:00:03.1]} 53... Rxb1 {[%clk
0:00:14.6]} 54. Kf6 {[%clk 0:00:01.6]} 54... Rb6+ {[%clk 0:00:14.7]} 55. Kf5
{[%clk 0:00:01.1]} 55... Rb5+ {[%clk 0:00:15.6]} 56. Kf6 {[%clk 0:00:01.1]}
56... Rb6+ {[%clk 0:00:15.5]} 0-1

[Event "Late-Titled-Tuesday-Blitz-October-10-2023"]
[Site "Chess.com"]
[Date "2023.10.10"]
[Round "7"]
[White "orestn"]
[Black "Grossboss19"]
[Result "1/2-1/2"]
[WhiteElo "2397"]
[BlackElo "2497"]
[TimeControl "180+1"]
[EndTime "15:13:04 PDT"]
[Termination "Game drawn by repetition"]

1. e4 {[%clk 0:02:56.1]} 1... c6 {[%clk 0:02:32.2]} 2. d4 {[%clk 0:02:55.6]}
2... d5 {[%clk 0:02:32.6]} 3. Nc3 {[%clk 0:02:56.2]} 3... dxe4 {[%clk
0:02:31.1]} 4. Nxe4 {[%clk 0:02:57.1]} 4... Nd7 {[%clk 0:02:31.6]} 5. Bd3 {[%clk
0:02:55]} 5... Ngf6 {[%clk 0:02:19.8]} 6. Ng5 {[%clk 0:02:53.3]} 6... e6 {[%clk
0:02:17.2]} 7. N1f3 {[%clk 0:02:50.3]} 7... Bd6 {[%clk 0:02:16.8]} 8. Qe2 {[%clk
0:02:49.4]} 8... h6 {[%clk 0:02:00.3]} 9. Ne4 {[%clk 0:02:47.6]} 9... Nxe4
{[%clk 0:01:51.1]} 10. Qxe4 {[%clk 0:02:40.9]} 10... Qc7 {[%clk 0:01:46.1]} 11.
c3 {[%clk 0:02:28.4]} 11... c5 {[%clk 0:01:44]} 12. O-O {[%clk 0:02:19]} 12...
Nf6 {[%clk 0:01:33.9]} 13. Qe2 {[%clk 0:02:17.3]} 13... O-O {[%clk 0:01:24.8]}
14. Ne5 {[%clk 0:01:59.6]} 14... b6 {[%clk 0:01:19.1]} 15. Ng4 {[%clk
0:01:40.8]} 15... Nxg4 {[%clk 0:01:02.3]} 16. Qxg4 {[%clk 0:01:40.5]} 16...
Bxh2+ {[%clk 0:01:01.9]} 17. Kh1 {[%clk 0:01:39.9]} 17... f5 {[%clk 0:01:01.5]}
18. Qh5 {[%clk 0:01:20.3]} 18... Bf4 {[%clk 0:00:55.7]} 19. Bxf4 {[%clk
0:00:55.3]} 19... Qxf4 {[%clk 0:00:54.2]} 20. Rae1 {[%clk 0:00:48.6]} 20... cxd4
{[%clk 0:00:51.9]} 21. cxd4 {[%clk 0:00:33.6]} 21... Qxd4 {[%clk 0:00:30.2]} 22.
Re3 {[%clk 0:00:33.6]} 22... e5 {[%clk 0:00:20.3]} 23. b3 {[%clk 0:00:26.8]}
23... e4 {[%clk 0:00:16.3]} 24. Bc4+ {[%clk 0:00:26.2]} 24... Kh8 {[%clk
0:00:17]} 25. Rg3 {[%clk 0:00:25.1]} 25... Qf6 {[%clk 0:00:16]} 26. Rg6 {[%clk
0:00:24.7]} 26... b5 {[%clk 0:00:08.2]} 27. Rxf6 {[%clk 0:00:23.5]} 27... Rxf6
{[%clk 0:00:09.1]} 28. Bxb5 {[%clk 0:00:22.2]} 28... Be6 {[%clk 0:00:09.7]} 29.
Bc4 {[%clk 0:00:22]} 29... Bxc4 {[%clk 0:00:09.3]} 30. bxc4 {[%clk 0:00:22.4]}
30... Rc8 {[%clk 0:00:10.2]} 31. Rc1 {[%clk 0:00:21.3]} 31... f4 {[%clk
0:00:07.7]} 32. c5 {[%clk 0:00:21]} 32... e3 {[%clk 0:00:07.7]} 33. fxe3 {[%clk
0:00:21.2]} 33... fxe3 {[%clk 0:00:08.6]} 34. Re1 {[%clk 0:00:21.3]} 34... Re6
{[%clk 0:00:08.1]} 35. Qd5 {[%clk 0:00:20]} 35... Rce8 {[%clk 0:00:07.4]} 36. c6
{[%clk 0:00:19.7]} 36... e2 {[%clk 0:00:07.9]} 37. c7 {[%clk 0:00:19.3]} 37...
Re3 {[%clk 0:00:07]} 38. Qd2 {[%clk 0:00:17.9]} 38... Kh7 {[%clk 0:00:05.9]} 39.
Rxe2 {[%clk 0:00:18]} 39... Rxe2 {[%clk 0:00:05.7]} 40. Qxe2 {[%clk 0:00:17.7]}
40... Rxe2 {[%clk 0:00:06.5]} 41. c8=Q {[%clk 0:00:18.1]} 41... Rxa2 {[%clk
0:00:07.1]} 42. Qf5+ {[%clk 0:00:16.2]} 42... Kh8 {[%clk 0:00:07.2]} 43. Qf8+
{[%clk 0:00:14.2]} 43... Kh7 {[%clk 0:00:07.6]} 44. Qf5+ {[%clk 0:00:14.4]}
44... Kh8 {[%clk 0:00:07.9]} 45. Qe4 {[%clk 0:00:13.6]} 45... Ra5 {[%clk
0:00:06.5]} 46. Qc6 {[%clk 0:00:13]} 46... Rg5 {[%clk 0:00:05.8]} 47. Qa8+
{[%clk 0:00:12.1]} 47... Kh7 {[%clk 0:00:06.4]} 48. Qxa7 {[%clk 0:00:13]} 48...
Rg6 {[%clk 0:00:05.3]} 49. Qa2 {[%clk 0:00:12.3]} 49... Rf6 {[%clk 0:00:05.7]}
50. Qc2+ {[%clk 0:00:12.3]} 50... Kh8 {[%clk 0:00:06]} 51. Qe4 {[%clk
0:00:12.1]} 51... h5 {[%clk 0:00:06.1]} 52. Kh2 {[%clk 0:00:12.2]} 52... h4
{[%clk 0:00:05.5]} 53. Qe8+ {[%clk 0:00:10.3]} 53... Kh7 {[%clk 0:00:05]} 54.
Kh3 {[%clk 0:00:10.8]} 54... Rh6 {[%clk 0:00:04.9]} 55. Qe4+ {[%clk 0:00:10.9]}
55... Kh8 {[%clk 0:00:04.8]} 56. Qe7 {[%clk 0:00:09.5]} 56... Kg8 {[%clk
0:00:04.9]} 57. Qe8+ {[%clk 0:00:09.2]} 57... Kh7 {[%clk 0:00:05.2]} 58. Kg4
{[%clk 0:00:09.1]} 58... Rg6+ {[%clk 0:00:03.7]} 59. Kh3 {[%clk 0:00:08.9]}
59... Rh6 {[%clk 0:00:03.9]} 1/2-1/2

[Event "Late-Titled-Tuesday-Blitz-October-10-2023"]
[Site "Chess.com"]
[Date "2023.10.10"]
[Round "7"]
[White "GaiozNigalidze"]
[Black "Oleksandr_Bortnyk"]
[Result "0-1"]
[WhiteElo "2726"]
[BlackElo "3033"]
[TimeControl "180+1"]
[EndTime "15:13:08 PDT"]
[Termination "Oleksandr_Bortnyk won by resignation"]

1. d4 {[%clk 0:03:00.3]} 1... d6 {[%clk 0:02:54.8]} 2. Nf3 {[%clk 0:02:58.8]}
2... Nf6 {[%clk 0:02:55.3]} 3. e3 {[%clk 0:02:57.9]} 3... g6 {[%clk 0:02:55.9]}
4. Be2 {[%clk 0:02:58.2]} 4... Bg7 {[%clk 0:02:56.6]} 5. O-O {[%clk 0:02:58.6]}
5... O-O {[%clk 0:02:57.4]} 6. b3 {[%clk 0:02:59.1]} 6... c5 {[%clk 0:02:58.2]}
7. Bb2 {[%clk 0:02:59.5]} 7... cxd4 {[%clk 0:02:58.8]} 8. exd4 {[%clk
0:02:59.5]} 8... Nc6 {[%clk 0:02:59.5]} 9. Nbd2 {[%clk 0:02:59.5]} 9... Bf5
{[%clk 0:02:59.4]} 10. a3 {[%clk 0:02:57.7]} 10... d5 {[%clk 0:02:58.2]} 11. h3
{[%clk 0:02:56.9]} 11... Rc8 {[%clk 0:02:57.6]} 12. Rc1 {[%clk 0:02:55.1]} 12...
Qb6 {[%clk 0:02:54.7]} 13. c4 {[%clk 0:02:36.6]} 13... dxc4 {[%clk 0:02:55.6]}
14. Nxc4 {[%clk 0:02:36.6]} 14... Qd8 {[%clk 0:02:56]} 15. Nce5 {[%clk
0:02:34.3]} 15... Be4 {[%clk 0:02:54.4]} 16. Nxc6 {[%clk 0:02:29.9]} 16... Rxc6
{[%clk 0:02:48.4]} 17. Rxc6 {[%clk 0:02:28.8]} 17... Bxc6 {[%clk 0:02:47.7]} 18.
Ne5 {[%clk 0:02:29.1]} 18... Bd5 {[%clk 0:02:47.4]} 19. Qd3 {[%clk 0:02:21.1]}
19... Qb6 {[%clk 0:02:43.7]} 20. b4 {[%clk 0:01:55.4]} 20... Rc8 {[%clk
0:02:42.3]} 21. Rc1 {[%clk 0:01:53.6]} 21... Rxc1+ {[%clk 0:02:41.8]} 22. Bxc1
{[%clk 0:01:54.5]} 22... Ne4 {[%clk 0:02:42.5]} 23. Be3 {[%clk 0:01:50.4]} 23...
Nd6 {[%clk 0:02:36.4]} 24. Qc3 {[%clk 0:01:38.8]} 24... Qd8 {[%clk 0:02:21]} 25.
Qc5 {[%clk 0:01:33.1]} 25... Nf5 {[%clk 0:02:21.5]} 26. Qxa7 {[%clk 0:01:21.8]}
26... Nxe3 {[%clk 0:02:21.8]} 27. fxe3 {[%clk 0:01:22.2]} 27... Bh6 {[%clk
0:02:19.5]} 28. Ng4 {[%clk 0:01:06.8]} 28... Bg5 {[%clk 0:02:19.7]} 29. Qc5
{[%clk 0:01:06.3]} 29... b6 {[%clk 0:02:07.7]} 30. Qc1 {[%clk 0:01:00]} 30...
Qa8 {[%clk 0:02:04.6]} 31. Bf1 {[%clk 0:00:46.9]} 31... Be6 {[%clk 0:02:00.3]}
32. Nf2 {[%clk 0:00:38.5]} 32... Qd5 {[%clk 0:01:58.8]} 33. Qc3 {[%clk
0:00:36.8]} 33... Bh4 {[%clk 0:01:49]} 34. Qc2 {[%clk 0:00:28.1]} 34... h5
{[%clk 0:01:40.3]} 35. a4 {[%clk 0:00:28.4]} 35... Qg5 {[%clk 0:01:30.5]} 36.
Qd2 {[%clk 0:00:26.1]} 36... Bd5 {[%clk 0:01:16.9]} 37. a5 {[%clk 0:00:21.7]}
37... bxa5 {[%clk 0:01:17.8]} 38. bxa5 {[%clk 0:00:22.3]} 38... Bg3 {[%clk
0:01:18.5]} 39. a6 {[%clk 0:00:19.9]} 39... Bd6 {[%clk 0:01:17.6]} 40. Nh1
{[%clk 0:00:17.7]} 40... Kh7 {[%clk 0:01:14.5]} 41. Qe2 {[%clk 0:00:18.1]} 41...
e5 {[%clk 0:01:12.4]} 42. e4 {[%clk 0:00:18.1]} 42... Ba8 {[%clk 0:01:07.8]} 43.
d5 {[%clk 0:00:18.4]} 43... Bc5+ {[%clk 0:01:02.1]} 44. Nf2 {[%clk 0:00:18.5]}
44... h4 {[%clk 0:01:03]} 45. Kh1 {[%clk 0:00:16.5]} 45... Qc1 {[%clk
0:00:57.3]} 46. Nd3 {[%clk 0:00:16.2]} 46... Qc3 {[%clk 0:00:54.4]} 47. Nxc5
{[%clk 0:00:16]} 47... Qxc5 {[%clk 0:00:55.3]} 48. Qe1 {[%clk 0:00:16.2]} 48...
Qe7 {[%clk 0:00:52.3]} 49. Qf2 {[%clk 0:00:16.5]} 49... Kg7 {[%clk 0:00:51]} 50.
a7 {[%clk 0:00:16.8]} 50... Qc7 {[%clk 0:00:49.1]} 51. Bb5 {[%clk 0:00:16.2]}
51... Bb7 {[%clk 0:00:42.1]} 52. Kh2 {[%clk 0:00:15.3]} 52... Ba8 {[%clk
0:00:30.2]} 53. Qe3 {[%clk 0:00:11.1]} 53... Qd6 {[%clk 0:00:27.4]} 54. Qe1
{[%clk 0:00:08.9]} 54... Qf6 {[%clk 0:00:26.9]} 55. Qe3 {[%clk 0:00:07.7]} 55...
Qd6 {[%clk 0:00:23.3]} 56. Qf2 {[%clk 0:00:06.1]} 56... Qc7 {[%clk 0:00:19.3]}
57. Bd3 {[%clk 0:00:03.8]} 57... Qa5 {[%clk 0:00:17.7]} 58. d6 {[%clk
0:00:02.9]} 58... Qa3 {[%clk 0:00:15.3]} 59. d7 {[%clk 0:00:01.9]} 59... Qxd3
{[%clk 0:00:15.5]} 60. Qxh4 {[%clk 0:00:01.2]} 60... Qxd7 {[%clk 0:00:15.5]} 61.
Qg5 {[%clk 0:00:01.6]} 61... Qc7 {[%clk 0:00:14.7]} 0-1

[Event "Late-Titled-Tuesday-Blitz-October-10-2023"]
[Site "Chess.com"]
[Date "2023.10.10"]
[Round "7"]
[White "FontVella8"]
[Black "YouShallNotPass001"]
[Result "1-0"]
[WhiteElo "2632"]
[BlackElo "2424"]
[TimeControl "180+1"]
[EndTime "15:13:08 PDT"]
[Termination "FontVella8 won by resignation"]

1. e4 {[%clk 0:03:00.9]} 1... c5 {[%clk 0:02:59.5]} 2. Nf3 {[%clk 0:02:55.7]}
2... d6 {[%clk 0:02:59.5]} 3. d4 {[%clk 0:02:55.8]} 3... cxd4 {[%clk 0:03:00.4]}
4. Nxd4 {[%clk 0:02:55.5]} 4... Nf6 {[%clk 0:03:01.1]} 5. f3 {[%clk 0:02:55.9]}
5... e5 {[%clk 0:02:55.8]} 6. Nb3 {[%clk 0:02:55.9]} 6... Be6 {[%clk 0:02:55.8]}
7. c4 {[%clk 0:02:55.8]} 7... Nc6 {[%clk 0:02:50.5]} 8. Be3 {[%clk 0:02:54.9]}
8... Be7 {[%clk 0:02:49.8]} 9. Nc3 {[%clk 0:02:55.1]} 9... O-O {[%clk
0:02:49.7]} 10. Be2 {[%clk 0:02:55.8]} 10... Rc8 {[%clk 0:02:47.1]} 11. Rc1
{[%clk 0:02:55.1]} 11... a6 {[%clk 0:02:46.5]} 12. O-O {[%clk 0:02:54.8]} 12...
Qd7 {[%clk 0:02:46.2]} 13. Qd2 {[%clk 0:02:53.4]} 13... Bd8 {[%clk 0:02:46.3]}
14. Rfd1 {[%clk 0:02:50.9]} 14... Na5 {[%clk 0:02:40.5]} 15. Nd5 {[%clk
0:02:19.8]} 15... Nxb3 {[%clk 0:02:36.9]} 16. axb3 {[%clk 0:02:19.9]} 16... b5
{[%clk 0:02:32]} 17. Nxf6+ {[%clk 0:02:13]} 17... Bxf6 {[%clk 0:02:32.9]} 18.
Qxd6 {[%clk 0:02:13.1]} 18... Qxd6 {[%clk 0:02:27.2]} 19. Rxd6 {[%clk
0:02:12.9]} 19... bxc4 {[%clk 0:02:26.5]} 20. bxc4 {[%clk 0:02:10.2]} 20... Rb8
{[%clk 0:02:19.4]} 21. Rc2 {[%clk 0:02:07.4]} 21... a5 {[%clk 0:02:17.2]} 22. c5
{[%clk 0:02:05.4]} 22... Rfc8 {[%clk 0:02:14.4]} 23. Ra6 {[%clk 0:01:36.9]}
23... a4 {[%clk 0:02:14.1]} 24. c6 {[%clk 0:01:33.7]} 24... Bb3 {[%clk
0:02:13.7]} 25. Rc3 {[%clk 0:01:26.6]} 25... Bd8 {[%clk 0:02:02.3]} 26. Ra7
{[%clk 0:01:10.2]} 26... Bc7 {[%clk 0:02:01.3]} 27. Rb7 {[%clk 0:01:06.3]} 27...
h5 {[%clk 0:01:56]} 28. Ba6 {[%clk 0:01:02.1]} 28... Ra8 {[%clk 0:01:27.6]} 29.
Ba7 {[%clk 0:00:48.2]} 29... Ba5 {[%clk 0:01:19.9]} 30. Rc5 {[%clk 0:00:25]}
30... Bc7 {[%clk 0:01:08.6]} 31. Rcb5 {[%clk 0:00:16.2]} 31... Bd6 {[%clk
0:01:05.6]} 32. Rd7 {[%clk 0:00:07.1]} 32... Rxc6 {[%clk 0:01:05.2]} 33. Rbb7
{[%clk 0:00:05.7]} 33... Rc1+ {[%clk 0:00:57.8]} 34. Kf2 {[%clk 0:00:05.5]}
34... Rxa7 {[%clk 0:00:53.6]} 35. Rxa7 {[%clk 0:00:03.7]} 35... Bc5+ {[%clk
0:00:53.7]} 36. Kg3 {[%clk 0:00:04.4]} 36... Bxa7 {[%clk 0:00:50.3]} 37. Rxa7
{[%clk 0:00:05]} 37... Rc2 {[%clk 0:00:49.1]} 38. Ra8+ {[%clk 0:00:03.9]} 38...
Kh7 {[%clk 0:00:48.6]} 39. Bb5 {[%clk 0:00:04]} 39... Rxb2 {[%clk 0:00:48]} 40.
Bxa4 {[%clk 0:00:04.5]} 40... Ra2 {[%clk 0:00:30.3]} 41. Bc6 {[%clk 0:00:04.1]}
41... Rxa8 {[%clk 0:00:30.1]} 42. Bxa8 {[%clk 0:00:04.8]} 42... Kh6 {[%clk
0:00:28.2]} 43. Bd5 {[%clk 0:00:02.5]} 43... f6 {[%clk 0:00:27.4]} 44. Bxb3
{[%clk 0:00:02.3]} 44... Kg5 {[%clk 0:00:21.7]} 45. Bd5 {[%clk 0:00:03.2]} 45...
h4+ {[%clk 0:00:22.2]} 46. Kf2 {[%clk 0:00:03.5]} 46... Kf4 {[%clk 0:00:22.6]}
47. g3+ {[%clk 0:00:04]} 47... Kg5 {[%clk 0:00:22.9]} 48. Ke3 {[%clk 0:00:03.2]}
48... g6 {[%clk 0:00:22.4]} 49. Be6 {[%clk 0:00:03.4]} 49... f5 {[%clk
0:00:22.6]} 50. exf5 {[%clk 0:00:02.7]} 50... gxf5 {[%clk 0:00:23.5]} 51. f4+
{[%clk 0:00:03]} 51... exf4+ {[%clk 0:00:23.1]} 52. gxf4+ {[%clk 0:00:03.9]}
52... Kf6 {[%clk 0:00:23.9]} 53. Bc8 {[%clk 0:00:03.7]} 53... Kg6 {[%clk
0:00:23.5]} 54. h3 {[%clk 0:00:03.9]} 54... Kf6 {[%clk 0:00:24.4]} 55. Kd4
{[%clk 0:00:04.2]} 55... Kg6 {[%clk 0:00:25.3]} 56. Ke5 {[%clk 0:00:04.6]} 56...
Kh5 {[%clk 0:00:25.5]} 57. Kxf5 {[%clk 0:00:04.6]} 57... Kh6 {[%clk 0:00:26.4]}
58. Kg4 {[%clk 0:00:04.9]} 58... Kg7 {[%clk 0:00:27.3]} 59. f5 {[%clk 0:00:05]}
59... Kh8 {[%clk 0:00:28.2]} 60. Kg5 {[%clk 0:00:05.3]} 60... Kg7 {[%clk
0:00:29.1]} 61. f6+ {[%clk 0:00:05.8]} 61... Kf8 {[%clk 0:00:30]} 62. Kg6 {[%clk
0:00:05.8]} 62... Kg8 {[%clk 0:00:29.8]} 63. f7+ {[%clk 0:00:05.2]} 63... Kf8
{[%clk 0:00:30.7]} 64. Ba6 {[%clk 0:00:05.4]} 64... Ke7 {[%clk 0:00:30.8]} 65.
Kg7 {[%clk 0:00:06]} 65... Ke6 {[%clk 0:00:31.7]} 66. f8=Q {[%clk 0:00:06.2]}
66... Ke5 {[%clk 0:00:32.6]} 67. Qf6+ {[%clk 0:00:06.6]} 67... Ke4 {[%clk
0:00:33.5]} 68. Bb7+ {[%clk 0:00:07]} 68... Ke3 {[%clk 0:00:34.4]} 69. Kg6
{[%clk 0:00:07]} 69... Kd2 {[%clk 0:00:35.3]} 70. Kf5 {[%clk 0:00:07.5]} 70...
Kc1 {[%clk 0:00:36.2]} 71. Ke4 {[%clk 0:00:08]} 71... Kc2 {[%clk 0:00:37.1]} 72.
Qd4 {[%clk 0:00:08]} 72... Kb3 {[%clk 0:00:37.4]} 73. Qc5 {[%clk 0:00:07.8]} 1-0